bitfinex-derivatives/quotes_BNBF0:USTF0_20250424
["timestamp","ask_amount","ask_price","bid_price","bid_amount"]
[1745464825703,2.13741932,608.28,605.32,0.30313327]
[1745464825704,1.25627911,607.33,605.32,0.30313327]
[1745464826106,0.28710147,607.32,605.32,0.30313327]
[1745464826812,0.28710147,607.32,605.31,1.374]
[1745464827013,0.28710147,607.32,605.32,0.30314236]
[1745464827812,1.25627911,607.33,605.32,0.30314236]
[1745464829111,0.28710147,607.32,605.32,0.30314236]
[1745464833817,1.25627911,607.39,605.32,0.30314236]
[1745464834220,0.28709437,607.31,605.32,0.30314236]
[1745464834612,1.25627911,607.32,605.32,0.30314236]
[1745464835317,0.28710266,607.31,605.32,0.30314236]
[1745464836819,1.25627911,607.32,605.31,1.374]
[1745464837018,1.25627911,607.32,605.32,0.30312718]
[1745464837218,0.28710266,607.31,605.32,0.30312718]
[1745464837419,1.54338177,607.31,605.32,0.30312718]
[1745464838619,1.54338177,607.31,605.33,1.335]
[1745464838814,1.54338177,607.31,605.34,0.30312718]
[1745464839419,1.25627911,607.24,605.34,0.30312718]
[1745464840121,0.28710976,607.23,605.34,0.30312718]
[1745464841721,0.28710976,607.23,605.33,1.335]
[1745464841918,1.25627911,606.98,605.34,0.30312248]
[1745464844518,0.28710976,607.23,605.34,0.30312248]
[1745464845820,1.25627911,607.26,605.34,0.30312248]
[1745464847123,0.28709318,607.25,605.34,0.30312248]
[1745464848323,0.28709318,607.25,605.35,1.465]
[1745464848525,0.28709318,607.25,605.36,0.30312248]
[1745464848820,1.25627911,607.29,605.36,0.30312248]
[1745464849224,0.28708726,607.28,605.36,0.30312248]
[1745464849626,1.25627911,607.26,605.36,0.30312248]
[1745464851522,1.25627911,607.26,605.35,1.465]
[1745464851729,1.25627911,607.26,605.36,0.30310407]
[1745464852227,0.28708371,607.25,605.36,0.30310407]
[1745464852729,1.25627911,607.24,605.36,0.30310407]
[1745464853025,1.25627911,607.24,605.35,1.465]
[1745464853227,1.25627911,607.24,605.36,0.30308844]
[1745464854125,1.25627911,607.24,605.37,1.548]
[1745464854327,1.25627911,607.24,605.38,0.30308844]
[1745464855129,0.28706239,607.23,605.38,0.30308844]
[1745464857832,1.25627911,607.55,605.37,1.548]
[1745464858032,1.25627911,607.55,605.38,0.30303252]
[1745464858232,0.28702096,607.22,605.38,0.30303252]
[1745464858433,1.25627911,607.55,605.38,0.30303252]
[1745464858736,1.25627911,607.43,605.42,1.04943721]
[1745464858929,1.25627911,607.43,605.43,0.30303252]
[1745464859435,1.25627911,607.43,605.42,1.04943721]
[1745464859627,1.25627911,607.43,605.43,0.30303384]
[1745464859832,0.28702925,607.42,605.43,0.30303384]
[1745464860935,1.25627911,607.43,605.43,0.30303384]
[1745464861235,1.25627911,607.38,605.43,0.30303384]
[1745464862036,1.25627911,607.38,605.42,1.04943721]
[1745464862237,0.28703517,607.37,605.43,0.30303842]
[1745464863836,1.25627911,607.38,605.43,0.30303842]
[1745464864539,1.25627911,607.6,605.43,0.30303842]
[1745464864734,1.25627911,607.6,605.44,0.30303842]
[1745464864934,1.25627911,607.6,605.38,0.30303842]
[1745464865139,0.28701504,607.59,605.41,0.28701504]
[1745464865334,0.28701504,607.59,605.42,0.30303842]
[1745464866840,1.25627911,607.6,605.42,0.30303842]
[1745464867034,1.25627911,607.6,605.38,0.30303842]
[1745464867339,0.28701031,607.58,605.39,0.30303842]
[1745464867538,0.28701031,607.58,605.38,0.30303842]
[1745464867738,0.28701031,607.58,605.39,0.30303842]
[1745464868040,1.25627911,607.53,605.4,0.30303842]
[1745464868238,1.25627911,607.53,605.41,0.30303842]
[1745464869039,0.28701031,607.58,605.41,0.30303842]
[1745464870136,0.28701031,607.58,605.42,0.30306008]
[1745464870340,0.28701031,607.58,605.41,0.30306008]
[1745464870534,0.28701031,607.58,605.42,1.60006008]
[1745464870741,0.28701031,607.58,605.43,0.30306008]
[1745464871137,1.25498526,607.51,605.43,0.30306008]
[1745464871538,1.25498526,607.51,605.43,1.206]
[1745464872841,1.25498526,607.51,605.43,2.609]
[1745464873041,1.25498526,607.51,605.44,0.30305671]
[1745464873642,1.25498526,607.18,605.44,0.30305671]
[1745464874244,1.25498526,607.18,605.43,2.609]
[1745464874442,1.25498526,607.18,605.44,0.30304891]
[1745464876145,0.2870766,607.17,605.44,0.30304891]
[1745464878847,1.25498526,607.32,605.44,0.30304891]
[1745464879147,1.25498526,607.27,605.44,0.30304891]
[1745464880147,0.28708252,607.26,605.44,0.30304891]
[1745464881842,1.25498526,607.29,605.44,0.30304891]
[1745464882045,1.25498526,607.29,605.45,0.30308885]
[1745464882242,1.25498526,607.29,605.44,0.30308885]
[1745464882443,1.25498526,607.29,605.45,0.30308885]
[1745464882648,1.25498526,607.29,605.44,0.30308885]
[1745464882848,1.25498526,607.29,605.45,0.30308885]
[1745464883048,1.25498526,607.29,605.46,0.30308885]
[1745464883250,0.28707068,607.28,605.44,0.30308885]
[1745464883549,0.28707068,607.28,605.43,2.89607068]
[1745464883851,0.28707068,607.28,605.44,0.30309328]
[1745464884750,0.28707068,607.28,605.43,2.89607068]
[1745464884949,1.25498526,607.45,605.43,2.609]
[1745464886148,0.28708726,607.44,605.43,2.89608726]
[1745464890853,1.25498526,607.61,605.43,2.609]
[1745464891251,0.28706831,607.6,605.43,2.609]
[1745464891448,0.28706831,607.6,605.43,2.89606831]
[1745464893849,1.25498526,607.61,605.43,2.609]
[1745464894149,0.28706831,607.59,605.43,2.609]
[1745464894551,0.28706831,607.59,605.44,0.30314597]
[1745464895954,0.28706831,607.59,605.43,2.89606831]
[1745464896157,0.28706831,607.59,605.44,0.30314271]
[1745464896860,1.25498526,607.6,605.44,0.30314271]
[1745464897054,0.2870695,607.58,605.44,0.30314271]
[1745464898261,0.2870695,607.58,605.45,1.396]
[1745464898464,1.25498526,607.08,605.46,0.30314271]
[1745464899162,1.25498526,607.08,605.45,1.396]
[1745464899361,1.25498526,607.08,605.46,0.30315237]
[1745464899661,1.25498526,607.08,605.47,1.323]
[1745464899862,1.25498526,607.08,605.48,0.30315237]
[1745464900261,0.28712634,607.07,605.48,0.30315237]
[1745464900662,0.28712634,607.07,605.47,1.323]
[1745464901163,1.25498526,607.06,605.47,1.323]
[1745464902663,0.28712634,607.07,605.47,1.323]
[1745464902863,1.25498526,607.43,605.47,1.323]
[1745464903164,0.28708489,607.06,605.47,1.323]
[1745464903464,1.25498526,607.43,605.47,1.323]
[1745464904161,0.28708489,607.42,605.47,1.323]
[1745464905866,1.25498526,607.44,605.47,1.323]
[1745464907162,1.25498526,607.42,605.47,1.323]
[1745464909166,0.28709792,607.41,605.47,1.323]
[1745464910768,0.28709792,607.41,605.48,0.30315867]
[1745464911867,1.25498526,607.42,605.48,0.30315867]
[1745464912263,0.28709792,607.4,605.48,0.30315867]
[1745464912865,0.28709792,607.4,605.47,1.323]
[1745464913569,1.25498526,607.13,605.47,1.323]
[1745464914169,1.25498526,607.13,605.48,1.05]
[1745464914673,1.25498526,607.13,605.49,1.258]
[1745464916172,0.2871299,607.12,605.49,1.258]
[1745464917871,1.25498526,607.14,605.49,1.258]
[1745464918067,1.25498526,607.14,605.5,0.30316854]
[1745464918267,0.28712871,607.11,605.5,0.30316854]
[1745464918968,1.25498526,607.03,605.5,0.30316854]
[1745464919568,1.25498526,607.03,605.51,1.567]
[1745464919769,1.25498526,607.03,605.52,0.30316854]
[1745464920775,1.25498526,607.03,605.52,1.071]
[1745464921373,1.25498526,607.03,605.53,0.30314504]
[1745464922068,1.25498526,607.03,605.52,1.071]
[1745464922273,1.25498526,607.03,605.53,0.30314619]
[1745464922474,1.25498526,606.99,605.53,0.30314619]
[1745464923673,1.25498526,606.99,605.52,1.071]
[1745464923869,1.25498526,606.99,605.53,0.30314688]
[1745464924074,1.25498526,606.99,605.52,1.071]
[1745464924576,1.25498526,607.04,605.52,1.071]
[1745464925270,0.28712753,607.03,605.52,1.071]
[1745464926872,1.25498526,607.04,605.52,1.071]
[1745464927176,0.28712753,607.02,605.52,1.071]
[1745464928478,0.28712753,607.02,605.52,2.418]
[1745464930079,1.25498526,607.36,605.52,2.418]
[1745464930782,1.25498526,607.38,605.52,2.418]
[1745464931181,0.28705648,607.35,605.52,2.418]
[1745464932885,1.25498526,607.38,605.52,2.418]
[1745464933878,1.25498526,607.38,605.53,0.30308632]
[1745464934184,0.28705411,607.37,605.53,0.30308632]
[1745464934384,0.28705411,607.37,605.52,2.418]
[1745464935883,1.25498526,607.64,605.52,2.418]
[1745464936188,0.28701149,607.36,605.52,2.418]
[1745464936489,1.25498526,607.55,605.52,2.418]
[1745464937287,0.28702215,607.54,605.52,2.418]
[1745464937888,0.28702215,607.54,605.52,3.536]
[1745464939084,0.28702215,607.54,605.53,0.30304288]
[1745464939488,0.28702215,607.54,605.52,2.465]
[1745464939788,0.28702215,607.54,605.53,0.30303795]
[1745464941890,1.25498526,607.88,605.53,0.30303795]
[1745464942992,1.25498526,607.85,605.53,0.30303795]
[1745464943188,1.25498526,607.85,605.53,1.099]
[1745464943389,1.25498526,607.85,605.54,0.30302235]
[1745464945189,0.28696652,607.84,605.54,0.30302235]
[1745464945794,0.28696652,607.84,605.53,1.099]
[1745464945993,1.25498526,607.59,605.54,0.30301411]
[1745464947392,1.25498526,607.59,605.53,1.099]
[1745464947591,1.25498526,607.59,605.54,0.30302556]
[1745464948192,0.28699729,607.58,605.54,0.30302556]
[1745464948393,1.25498526,607.54,605.54,0.30302556]
[1745464951495,1.25498526,607.55,605.54,0.30302556]
[1745464952191,0.28700202,607.54,605.54,0.30302556]
[1745464953395,0.28700202,607.54,605.55,0.30302556]
[1745464953592,0.28700202,607.54,605.56,0.30302556]
[1745464953796,0.28700202,607.54,605.57,0.30302556]
[1745464953997,1.25498526,607.55,605.58,0.30302556]
[1745464954190,1.25498526,607.55,605.59,0.30302556]
[1745464954395,1.25498526,607.55,605.54,0.30302556]
[1745464954700,1.25498526,607.55,605.53,1.099]
[1745464954701,1.25498526,607.4,605.55,0.30302556]
[1745464954897,1.25498526,607.4,605.56,0.30302556]
[1745464955091,1.25498526,607.4,605.57,0.30302556]
[1745464955296,0.28701978,607.39,605.57,0.30302556]
[1745464955496,0.28701978,607.39,605.58,0.30302556]
[1745464955796,0.28701978,607.39,605.59,0.30302556]
[1745464955993,0.28701978,607.39,605.6,0.30302556]
[1745464956198,0.28701978,607.39,605.61,0.30302556]
[1745464956496,0.28701978,607.39,605.62,0.30302556]
[1745464956691,1.25498526,607.32,605.55,0.30302556]
[1745464957097,1.25498526,607.32,605.54,0.30302556]
[1745464957297,1.25498526,607.32,605.55,0.30302556]
[1745464957497,1.25498526,607.32,605.54,0.30302556]
[1745464958200,0.28702925,607.31,605.54,0.59005481]
[1745464958496,0.28702925,607.31,605.55,0.30300702]
[1745464959999,1.25498526,607.5,605.55,0.30300702]
[1745464960200,1.25498526,607.5,605.54,0.30300702]
[1745464960399,1.25498526,607.5,605.55,0.30300702]
[1745464960600,1.25498526,607.47,605.54,0.30300702]
[1745464960800,1.25498526,607.47,605.55,0.30300702]
[1745464961000,1.25498526,607.47,605.56,0.30300702]
[1745464961301,0.28701149,607.46,605.57,0.30300702]
[1745464961501,0.28701149,607.46,605.55,0.30300702]
[1745464962902,1.25498526,607.47,605.55,0.30300702]
[1745464963201,1.25498526,607.47,605.54,0.30300702]
[1745464963399,1.25498526,607.44,605.55,0.30300702]
[1745464963602,1.25498526,607.44,605.54,0.30300702]
[1745464963898,1.25498526,607.44,605.55,1.32]
[1745464964101,1.25498526,607.44,605.56,0.30300702]
[1745464964603,1.25498526,607.44,605.56,1.34600702]
[1745464964803,1.25498526,607.44,605.56,1.043]
[1745464965004,1.25498526,607.44,605.57,0.30299795]
[1745464965304,1.25498526,607.44,605.58,0.98]
[1745464965504,1.25498526,607.44,605.59,0.30299795]
[1745464965705,1.25498526,607.44,605.58,0.98]
[1745464966204,1.25498526,607.44,605.59,0.30299532]
[1745464966399,0.28700913,607.43,605.59,0.30299532]
[1745464968707,0.28700913,607.43,605.58,0.98]
[1745464968902,1.25498526,607.98,605.58,0.98]
[1745464969107,1.25498526,607.99,605.58,0.98]
[1745464970009,1.25498526,607.99,605.59,0.30299258]
[1745464970509,0.28692748,607.98,605.59,0.30299258]
[1745464971110,0.28692748,607.98,605.6,0.30297844]
[1745464971305,0.28692748,607.98,605.58,0.98]
[1745464971612,0.28692748,607.98,605.59,0.30297924]
[1745464971810,2.13521798,608.92,605.59,0.30297924]
[1745464971811,1.25498526,608.0,605.59,0.30297924]
[1745464972413,0.28691447,607.99,605.59,0.30297924]
[1745464972614,0.28691447,607.99,605.6,1.601]
[1745464972820,0.28691447,607.99,605.61,0.30297181]
[1745464975016,1.25498526,608.04,605.61,0.30297181]
[1745464976216,0.28690738,608.03,605.61,0.30297181]
[1745464977518,1.25498526,607.72,605.61,0.30297181]
[1745464979218,0.28696061,607.71,605.61,0.30297181]
[1745464979714,1.25498526,607.4,605.61,0.30297181]
[1745464980420,1.25498526,607.4,605.62,1.205]
[1745464980613,1.25498526,607.4,605.63,0.3029911]
[1745464981519,1.25498526,607.4,605.62,1.205]
[1745464981820,1.25498526,607.4,605.63,0.3029911]
[1745464982220,0.28699729,607.39,605.63,0.3029911]
[1745464983123,1.25498526,607.14,605.62,1.205]
[1745464983318,1.25498526,607.14,605.63,0.30299419]
[1745464983622,1.25498526,607.14,605.62,1.205]
[1745464985322,0.28699729,607.39,605.62,1.205]
[1745464986122,0.28699729,607.39,605.63,0.30301392]
[1745464986922,1.25498526,607.57,605.63,0.30301392]
[1745464987923,1.25498526,607.74,605.63,0.30301392]
[1745464988224,0.28697954,607.56,605.63,0.30301392]
[1745464988522,1.25498526,607.74,605.63,0.30301392]
[1745464989620,1.25498526,607.74,605.64,1.268]
[1745464990125,0.28695706,607.73,605.64,1.268]
[1745464992927,1.25498526,607.74,605.64,1.268]
[1745464993327,1.25498526,607.74,605.65,0.30301722]
[1745464994220,0.28696416,607.73,605.65,0.30301722]
[1745464994428,0.28696416,607.73,605.65,1.80501722]
[1745464994625,0.28696416,607.73,605.66,0.30301722]
[1745464994828,0.28696416,607.73,605.67,0.30302472]
[1745464995022,0.28696416,607.73,605.66,0.30302472]
[1745464995631,1.25498526,607.16,605.66,0.30302472]
[1745464996229,1.25498526,607.16,605.65,1.502]
[1745464996529,1.25498526,607.16,605.66,0.30302571]
[1745464997228,0.28704108,607.15,605.66,0.30302571]
[1745464998931,1.25498526,607.16,605.66,0.30302571]
[1745464999230,1.25498526,607.2,605.66,0.30302571]
[1745464999530,1.25498526,607.2,605.67,0.30301074]
[1745464999729,1.25498526,607.2,605.66,0.30301074]
[1745465000029,1.25498526,607.2,605.67,0.30301074]
[1745465000229,0.28703635,607.19,605.66,0.30301074]
[1745465001030,0.28703635,607.19,605.65,1.78903635]
[1745465001230,0.28703635,607.19,605.66,0.30300616]
[1745465001933,1.25498526,607.2,605.66,0.30300616]
[1745465002334,0.28701978,607.18,605.66,0.30300616]
[1745465002830,0.28701978,607.18,605.66,1.31500616]
[1745465003031,0.28701978,607.18,605.67,0.30300616]
[1745465005038,1.25498526,607.41,605.67,0.30300616]
[1745465005633,1.25498526,607.31,605.67,0.30300616]
[1745465006235,0.28700558,607.3,605.67,0.30300616]
[1745465007935,1.25498526,607.31,605.67,0.30300616]
[1745465009138,1.25498526,607.39,605.67,0.30300616]
[1745465009437,0.28700558,607.3,605.67,0.30300616]
[1745465009637,1.25498526,607.39,605.67,0.30300616]
[1745465010540,1.25498526,607.39,605.66,1.29900558]
[1745465010740,1.25498526,607.39,605.67,0.30301703]
[1745465011234,0.28700321,607.38,605.67,0.30301703]
[1745465012139,0.28700321,607.38,605.66,1.012]
[1745465012439,1.25498526,607.33,605.67,0.30301389]
[1745465014635,1.25498526,607.33,605.66,1.29900321]
[1745465014836,1.25498526,607.35,605.66,1.29900321]
[1745465015641,1.25498526,607.35,605.66,1.012]
[1745465017136,0.28704582,607.34,605.66,1.012]
[1745465019046,0.28704582,607.34,605.66,2.168]
[1745465019947,1.25498526,607.53,605.66,2.168]
[1745465020747,1.25498526,607.55,605.66,2.168]
[1745465021147,0.28703872,607.54,605.66,2.168]
[1745465022947,1.25498526,607.55,605.66,2.168]
[1745465023651,1.25498526,607.31,605.66,2.168]
[1745465024249,0.28706713,607.3,605.66,2.168]
[1745465026949,1.25418113,607.36,605.66,3.749]
[1745465029150,0.28706831,607.35,605.66,3.749]
[1745465031953,1.25418113,607.43,605.66,3.749]
[1745465033051,1.25418113,607.42,605.66,3.749]
[1745465033251,1.54125537,607.42,605.66,3.749]
[1745465035954,1.25418113,607.24,605.66,3.749]
[1745465038854,1.25418113,607.29,605.66,3.749]
[1745465039153,0.28712042,607.23,605.66,3.749]
[1745465046959,1.25418113,607.44,605.66,3.749]
[1745465047260,0.28709673,607.22,605.66,3.749]
[1745465047453,1.25418113,607.44,605.66,3.749]
[1745465047657,2.13384984,608.19,605.66,3.749]
[1745465047658,1.25418113,607.36,605.66,3.749]
[1745465048255,0.28710621,607.35,605.66,3.749]
[1745465049959,1.25418113,607.36,605.66,3.749]
[1745465050161,1.25418113,607.3,605.66,3.749]
[1745465051563,1.25418113,607.3,605.66,5.134]
[1745465052063,1.25418113,606.95,605.66,5.134]
[1745465054265,0.2871145,606.94,605.66,5.134]
[1745465055969,1.25418113,607.53,605.66,5.134]
[1745465056471,1.25418113,607.24,605.66,5.134]
[1745465057267,0.28708016,607.23,605.66,5.134]
[1745465058070,0.28708016,607.23,605.66,3.978]
[1745465058370,0.28708016,607.23,605.66,2.397]
[1745465058569,1.25418113,607.13,605.66,2.397]
[1745465059267,0.28709081,607.12,605.66,2.397]
[1745465059475,0.28709081,607.12,605.66,1.385]
[1745465061973,1.25418113,607.2,605.66,1.385]
[1745465063273,0.28707068,607.19,605.66,1.385]
[1745465064974,1.25418113,607.26,605.66,1.385]
[1745465065679,1.25418113,607.21,605.66,1.385]
[1745465066374,0.2870695,607.2,605.66,1.385]
[1745465067980,1.25418113,607.21,605.66,1.385]
[1745465068380,0.2870695,607.2,605.66,1.385]
[1745465069082,1.25418113,607.19,605.66,1.385]
[1745465071479,1.25418113,607.08,605.66,1.385]
[1745465074083,1.25418113,606.9,605.66,1.385]
[1745465077089,1.25418113,607.23,605.66,1.385]
[1745465077390,1.25418113,607.23,605.67,0.30307831]
[1745465077589,1.25418113,607.23,605.29,1.0475417]
[1745465077888,1.25418113,607.23,605.3,0.30308035]
[1745465078290,0.28708252,607.22,605.31,0.28708252]
[1745465078587,0.28708252,607.22,605.32,0.30308035]
[1745465078789,0.28708252,607.22,605.31,0.28708252]
[1745465078984,0.28708252,607.22,605.32,0.3030781]
[1745465079591,0.28708252,607.22,605.32,1.3506198]
[1745465079889,0.28708252,607.22,605.33,0.3030781]
[1745465080090,1.25418113,607.32,605.33,0.3030781]
[1745465080391,0.28706358,607.21,605.32,1.33460528]
[1745465080592,0.28706358,607.21,605.34,1.252]
[1745465080789,1.25418113,607.32,605.35,0.30307188]
[1745465081690,2.13384984,607.93,605.35,0.30307188]
[1745465081691,1.25418113,607.39,605.35,0.30307188]
[1745465081991,0.28706121,607.31,605.35,0.30307188]
[1745465082291,1.25418113,607.39,605.35,0.30307188]
[1745465082788,0.28706003,607.3,605.35,0.30307188]
[1745465083190,1.25418113,607.39,605.35,0.30307188]
[1745465084393,0.28706713,607.38,605.35,0.30307188]
[1745465085094,0.28706713,607.38,605.34,1.53906713]
[1745465085289,0.28706713,607.38,605.35,0.30308425]
[1745465085593,0.28706713,607.38,605.36,1.25]
[1745465085791,0.28706713,607.38,605.37,0.30308425]
[1745465085989,1.25418113,607.52,605.37,0.30308425]
[1745465086990,2.13384984,608.24,605.37,0.30308425]
[1745465086991,1.25418113,607.54,605.37,0.30308425]
[1745465087494,0.28704937,607.51,605.37,0.30308425]
[1745465088294,0.28704937,607.51,605.36,1.25]
[1745465088594,0.28704937,607.51,605.37,0.30308495]
[1745465089093,1.25418113,607.54,605.37,0.30308495]
[1745465089697,1.25418113,607.55,605.37,0.30308495]
[1745465089895,1.25418113,607.55,605.36,1.25]
[1745465090192,1.25418113,607.55,605.37,0.30309229]
[1745465090392,0.28704582,607.54,605.37,0.30309229]
[1745465090794,0.28704582,607.54,605.38,1.581]
[1745465090992,0.28704582,607.54,605.39,0.30309229]
[1745465091496,0.28704582,607.54,605.38,1.581]
[1745465091699,0.28704582,607.54,605.39,0.30308706]
[1745465091999,1.25418113,607.55,605.39,0.30308706]
[1745465092296,1.25418113,607.52,605.39,0.30308706]
[1745465093299,0.287047,607.51,605.39,0.30308706]
[1745465093500,0.287047,607.51,605.4,1.223]
[1745465093701,0.287047,607.51,605.41,0.30308706]
[1745465094700,0.287047,607.51,605.4,1.223]
[1745465094897,0.287047,607.51,605.41,0.30309058]
[1745465095099,1.25418113,607.52,605.41,0.30309058]
[1745465095408,1.25418113,607.26,605.41,0.30309058]
[1745465097805,1.25418113,607.26,605.4,1.223]
[1745465098005,1.25418113,607.26,605.41,0.30299938]
[1745465098206,1.25418113,607.79,605.41,0.30299938]
[1745465099207,0.28697481,607.78,605.41,0.30299938]
[1745465101011,1.25418113,607.79,605.41,0.30299938]
[1745465101913,1.25418113,607.85,605.41,0.30299938]
[1745465102211,0.28697481,607.78,605.41,0.30299938]
[1745465103511,0.28697481,607.78,605.4,1.50997481]
[1745465103712,0.28697481,607.78,605.41,0.30301768]
[1745465104108,1.25418113,607.85,605.41,0.30301768]
[1745465104712,1.25418113,607.82,605.41,0.30301768]
[1745465105212,0.28697126,607.81,605.4,1.50997126]
[1745465105510,0.28697126,607.81,605.41,0.30301238]
[1745465106112,0.28697126,607.81,605.42,0.30301238]
[1745465106412,0.28697126,607.81,605.43,0.30301238]
[1745465106612,0.28697126,607.81,605.44,0.30301238]
[1745465106807,0.28697126,607.81,605.4,1.50997126]
[1745465107012,0.28697126,607.81,605.45,0.30301487]
[1745465107212,0.28697126,607.81,605.46,0.30301487]
[1745465107414,1.25418113,607.68,605.47,0.30301487]
[1745465107607,1.25418113,607.68,605.48,0.30301487]
[1745465107807,1.25418113,607.68,605.49,0.30301487]
[1745465108010,1.25418113,607.68,605.5,0.30301487]
[1745465108209,1.25418113,607.68,605.51,0.30301487]
[1745465108409,1.25418113,607.68,605.41,0.30301487]
[1745465108616,1.25418113,607.68,605.42,0.30301487]
[1745465108814,1.25418113,607.68,605.43,0.30301487]
[1745465109008,1.25418113,607.68,605.44,0.30301487]
[1745465109208,1.25418113,607.68,605.45,0.30301487]
[1745465109414,1.25418113,607.68,605.46,0.30301487]
[1745465109613,1.25418113,607.68,605.47,0.30301487]
[1745465109814,1.25418113,607.68,605.48,0.30301487]
[1745465110015,1.25418113,607.27,605.49,0.30301042]
[1745465110308,1.25418113,607.27,605.5,0.30301042]
[1745465110509,1.25418113,607.27,605.48,0.30301042]
[1745465110714,1.25418113,607.27,605.49,0.30301042]
[1745465110914,1.25418113,607.27,605.48,0.30301042]
[1745465111517,1.25418113,607.27,605.49,1.472]
[1745465111817,1.25418113,607.27,605.5,0.30301042]
[1745465112920,0.28697126,607.81,605.5,0.30301042]
[1745465112921,1.25418113,607.56,605.5,0.30301042]
[1745465114015,1.25418113,607.56,605.51,1.073]
[1745465114315,1.25418113,607.56,605.52,0.30301042]
[1745465114516,0.28699374,607.55,605.52,0.30301042]
[1745465114723,0.28699374,607.55,605.51,1.073]
[1745465115015,0.28699374,607.55,605.53,0.30300822]
[1745465115219,0.28699374,607.55,605.54,0.30300822]
[1745465115420,0.28699374,607.55,605.52,0.30300822]
[1745465116121,1.25418113,607.61,605.52,0.30300822]
[1745465117323,0.28698546,607.6,605.52,0.30300822]
[1745465117919,0.28698546,607.6,605.51,1.073]
[1745465118118,0.28698546,607.6,605.52,0.30301172]
[1745465119025,1.25418113,607.7,605.52,0.30301172]
[1745465119224,1.25418113,607.7,605.52,1.48701172]
[1745465119425,1.25418113,607.7,605.53,0.30301172]
[1745465120323,0.28697362,607.69,605.53,0.30301172]
[1745465120521,1.25418113,607.63,605.53,0.30301172]
[1745465123226,1.25418113,607.51,605.53,0.30301172]
[1745465125825,1.25418113,607.51,605.52,1.184]
[1745465126026,1.25418113,607.41,605.53,0.30301351]
[1745465127425,1.25418113,607.41,605.52,1.184]
[1745465127624,1.25418113,607.41,605.53,0.30301419]
[1745465128525,1.25418113,607.43,605.53,0.30301419]
[1745465131430,1.25418113,607.37,605.55,1.0475417]
[1745465132231,1.25418113,607.37,605.55,2.5175417]
[1745465133232,1.25418113,607.37,605.55,3.5205417]
[1745465133431,1.25418113,607.95,605.55,2.473]
[1745465133635,0.28701386,607.36,605.55,2.473]
[1745465134034,1.25418113,607.95,605.55,2.473]
[1745465135233,0.28694523,607.94,605.55,2.473]
[1745465137029,1.25418113,607.95,605.55,2.473]
[1745465138233,0.28694523,607.94,605.55,2.473]
[1745465140033,1.25418113,607.96,605.55,2.473]
[1745465141233,0.28694405,607.95,605.56,0.30300443]
[1745465141627,0.28694405,607.95,605.55,2.473]
[1745465141827,0.28694405,607.95,605.56,0.30300449]
[1745465142134,1.25418113,607.92,605.56,0.30300449]
[1745465144232,0.28694878,607.91,605.56,0.30300449]
[1745465144532,0.28694878,607.91,605.55,2.75994878]
[1745465145034,1.25418113,607.35,605.55,2.75994878]
[1745465145334,1.25418113,607.35,605.55,3.84294878]
[1745465146035,1.25418113,607.35,605.55,3.556]
[1745465147236,0.28701623,607.34,605.55,3.84301623]
[1745465149038,1.25418113,607.78,605.55,3.556]
[1745465149838,1.25418113,607.79,605.55,3.556]
[1745465150238,0.28698546,607.78,605.55,3.556]
[1745465150437,0.28698546,607.78,605.55,3.84298546]
[1745465152035,1.25418113,607.79,605.55,3.556]
[1745465152439,1.25418113,607.68,605.55,3.556]
[1745465152840,1.25418113,607.68,605.55,4.922]
[1745465153236,0.28699847,607.67,605.55,4.922]
[1745465153439,0.28699847,607.67,605.55,5.20899847]
[1745465155038,2.13384984,608.54,605.55,4.922]
[1745465155039,1.25418113,607.69,605.55,4.922]
[1745465155344,0.28699847,607.66,605.55,5.20899847]
[1745465158041,1.25418113,607.7,605.55,4.922]
[1745465159245,0.28701741,607.69,605.55,5.20901741]
[1745465160247,1.25418113,607.37,605.55,5.20901741]
[1745465160646,1.25418113,607.37,605.56,0.30309718]
[1745465160940,1.25418113,607.37,605.55,5.20901741]
[1745465161144,1.25418113,607.37,605.56,0.30309128]
[1745465161345,0.28705648,607.36,605.56,0.30309128]
[1745465164041,1.25418113,607.41,605.56,0.30309128]
[1745465164447,0.28705174,607.35,605.56,0.30309128]
[1745465164846,0.28705174,607.35,605.55,1.366]
[1745465165044,1.25418113,607.25,605.56,0.30309308]
[1745465165542,1.25418113,607.25,605.56,1.31209308]
[1745465165741,1.25418113,607.25,605.57,0.30309308]
[1745465166047,1.25418113,607.25,605.58,1.261]
[1745465166248,1.25418113,607.25,605.59,0.30309308]
[1745465166548,1.25418113,607.25,605.6,1.031]
[1745465166747,1.25418113,607.25,605.61,0.30309308]
[1745465167047,1.25418113,607.34,605.61,0.30309308]
[1745465168050,1.25418113,607.34,605.6,1.031]
[1745465168252,1.25418113,607.34,605.61,0.30308546]